bitfinex-derivatives/quotes_SOLF0:USTF0_20240902
["timestamp","ask_amount","ask_price","bid_price","bid_amount"]
[1725316147919,0.05580086,134.51,134.49,0.0550115]
[1725316148811,0.05580086,134.51,134.5,3.7176]
[1725316153509,0.05580086,134.51,134.49,3.7728115]
[1725316153713,0.05580086,134.51,134.49,0.0550115]
[1725316154622,0.05580086,134.51,134.49,3.75641639]
[1725316155323,0.05580086,134.51,134.5,3.7176]
[1725316160215,1.3757,134.58,134.5,9.13]
[1725316160414,1.3757,134.58,134.53,9.13]
[1725316160915,5.0913,134.58,134.54,3.7163]
[1725316161321,0.0524634,134.57,134.55,0.05035345]
[1725316162328,0.0524634,134.57,134.55,3.76635345]
[1725316163727,0.0524634,134.57,134.56,3.716]
[1725316164225,0.0524634,134.57,134.55,0.05035345]
[1725316164413,9.1824634,134.57,134.55,0.05035345]
[1725316166324,0.0524634,134.57,134.55,0.05035345]
[1725316166527,9.1824634,134.57,134.55,0.05035345]
[1725316171223,12.8983634,134.57,134.55,0.05035345]
[1725316172431,9.1824634,134.57,134.55,0.05035345]
[1725316173732,0.0524634,134.57,134.56,3.716]
[1725316175138,0.0524634,134.57,134.55,0.05035345]
[1725316175722,0.0524634,134.57,134.56,3.716]
[1725316176536,0.0524634,134.57,134.56,7.49544335]
[1725316176929,0.0524634,134.57,134.56,3.716]
[1725316182230,1.3846,134.63,134.55,12.87064146]
[1725316182432,9.13,134.62,134.57,9.13]
[1725316182936,12.8445,134.62,134.58,3.7152]
[1725316183338,0.04686246,134.61,134.59,0.05059734]
[1725316187239,0.04686246,134.61,134.59,9.18059734]
[1725316187440,0.04686246,134.61,134.6,3.7148]
[1725316193654,0.04686246,134.61,134.59,3.76559734]
[1725316195053,0.04686246,134.61,134.59,0.05059734]
[1725316196451,3.76146246,134.61,134.59,0.05059734]
[1725316200260,9.13,134.6,134.46,7.4371]
[1725316200468,9.13,134.6,134.53,10.4516]
[1725316200661,9.13,134.6,134.54,3.65631152]
[1725316200868,9.13,134.6,134.55,3.7162]
[1725316201270,0.05198931,134.59,134.56,0.05034868]
[1725316201470,9.18198931,134.59,134.56,0.05034868]
[1725316201673,9.13,134.57,134.56,0.05034868]
[1725316202072,12.8457,134.57,134.56,0.05034868]
[1725316205077,9.13,134.57,134.56,0.05034868]
[1725316205377,17.99089604,134.58,134.56,0.05034868]
[1725316205975,14.27539604,134.58,134.56,0.05034868]
[1725316207478,1.3498,134.58,134.56,3.76624868]
[1725316208280,45.65,134.57,134.36,18.92509986]
[1725316208585,1.366,134.57,134.41,2.82455065]
[1725316208789,3.7162,134.56,134.48,12.8479]
[1725316209075,1.366,134.57,134.49,9.13]
[1725316209382,0.04771174,134.54,134.52,0.04817906]
[1725316209582,14.19050766,134.58,134.51,9.13]
[1725316209878,0.05495567,134.54,134.52,0.04841625]
[1725316210579,0.05495567,134.54,134.53,9.13]
[1725316210777,9.13,134.62,134.53,9.13]
[1725316210977,9.13,134.62,134.56,9.13]
[1725316211177,9.13,134.62,134.55,9.13]
[1725316211378,9.13,134.61,134.55,9.13]
[1725316211778,0.04915071,134.59,134.57,0.05183233]
[1725316215381,3.76425071,134.59,134.57,0.05183233]
[1725316215987,3.7154,134.58,134.57,0.05183233]
[1725316216390,12.8454,134.58,134.47,2.8348]
[1725316216580,3.73476968,134.61,134.47,2.8348]
[1725316216581,9.13,134.54,134.47,4.1959]
[1725316216780,9.13,134.54,134.48,3.62184249]
[1725316216987,9.13,134.54,134.47,11.8887]
[1725316217492,0.05291812,134.52,134.49,0.05363641]
[1725316217988,3.7174,134.51,134.49,0.05363641]
[1725316218182,0.05291812,134.52,134.49,0.05363641]
[1725316218387,3.7173,134.51,134.49,0.05363641]
[1725316218590,22.86,134.51,134.49,0.05363641]
[1725316218796,24.1962,134.51,134.49,0.05363641]
[1725316219294,3.7176,134.5,134.49,0.05363641]
[1725316219690,24.1962,134.51,134.42,25.5918]
[1725316219884,24.1962,134.51,134.42,24.1818]
[1725316220482,3.7184,134.48,134.42,24.1818]
[1725316220698,0.04996115,134.46,134.44,0.04923355]
[1725316223602,0.04996115,134.46,134.44,3.76853355]
[1725316224696,0.04996115,134.46,134.44,0.04923355]
[1725316227094,3.76876115,134.46,134.44,0.04923355]
[1725316227694,0.04996115,134.46,134.44,0.04923355]
[1725316231609,0.04996115,134.46,134.45,3.719]
[1725316236601,22.86,134.52,134.48,3.7181]
[1725316236809,24.2592,134.54,134.48,3.7181]
[1725316237703,3.76718924,134.52,134.5,0.05681501]
[1725316238705,3.7173,134.51,134.5,0.05681501]
[1725316239309,9.13,134.51,134.5,0.05681501]
[1725316239513,9.17998924,134.52,134.5,0.05681501]
[1725316240216,12.89708924,134.52,134.5,0.05681501]
[1725316240509,9.13,134.51,134.42,1.3218]
[1725316240816,9.13,134.51,134.44,9.13]
[1725316241018,9.13,134.51,134.45,9.13]
[1725316241310,9.13,134.51,134.47,3.7182]
[1725316241513,0.04835871,134.5,134.48,0.05679684]
[1725316243912,3.76595871,134.5,134.48,0.05679684]
[1725316245313,0.04835871,134.5,134.48,0.05679684]
[1725316246518,3.76615871,134.5,134.48,0.05679684]
[1725316247014,0.04835871,134.5,134.48,0.05679684]
[1725316247617,1.45035871,134.5,134.48,0.05679684]
[1725316247817,3.7179,134.49,134.48,0.05679684]
[1725316248014,1.45035871,134.5,134.48,0.05679684]
[1725316249324,5.16805871,134.5,134.48,0.05679684]
[1725316250817,3.7179,134.49,134.48,0.05679684]
[1725316256025,12.8479,134.49,134.48,0.05679684]
[1725316258027,9.13,134.49,134.44,3.7191]
[1725316258427,3.7184,134.47,134.44,3.7191]
[1725316258836,3.7184,134.47,134.44,3.77349866]
[1725316258837,3.77411307,134.47,134.44,3.77349866]
[1725316260334,9.13,134.45,134.44,0.05439866]
[1725316260732,9.13,134.45,134.38,9.13]
[1725316260936,12.8497,134.43,134.39,3.7206]
[1725316261131,3.7197,134.43,134.39,3.7206]
[1725316261538,5.08605342,134.48,134.37,3.73494594]
[1725316261847,0.0527806,134.44,134.41,0.05062168]
[1725316262033,10.532,134.5,134.44,9.13]
[1725316262240,0.04871069,134.48,134.46,0.0500605]
[1725316262537,9.17871069,134.48,134.46,0.0500605]
[1725316263041,3.7186,134.47,134.46,0.0500605]
[1725316263241,0.04871069,134.48,134.46,0.0500605]
[1725316263456,0.04871069,134.48,134.46,3.7685605]
[1725316263741,0.04871069,134.48,134.46,0.0500605]
[1725316264639,0.04871069,134.48,134.46,3.7686605]
[1725316265736,0.04871069,134.48,134.47,3.7184]
[1725316266248,0.04871069,134.48,134.46,12.8986605]
[1725316268245,0.04871069,134.48,134.46,3.7686605]
[1725316269356,0.04871069,134.48,134.47,3.7184]
[1725316270442,0.04871069,134.48,134.46,3.7686605]
[1725316271147,0.04871069,134.48,134.47,3.7184]
[1725316271346,0.04871069,134.48,134.47,12.8484]
[1725316271753,0.04871069,134.48,134.47,14.234]
[1725316272152,0.04871069,134.48,134.47,5.104]
[1725316277654,0.04871069,134.48,134.46,0.0500605]
[1725316277854,9.17871069,134.48,134.46,0.0500605]
[1725316278355,12.89701069,134.48,134.46,0.0500605]
[1725316280447,3.7184,134.47,134.46,0.0500605]
[1725316281454,9.13,134.47,134.39,89.68671141]
[1725316281650,9.13,134.45,134.39,89.68671141]
[1725316282155,9.13,134.45,134.4,3.7202]
[1725316282558,3.77404348,134.44,134.41,0.05517369]
[1725316282755,0.05464348,134.44,134.41,0.05517369]
[1725316282951,0.05464348,134.44,134.41,3.77527369]
[1725316284460,3.77404348,134.44,134.41,3.77527369]
[1725316284961,3.77404348,134.44,134.41,0.05517369]
[1725316286463,3.77404348,134.44,134.41,3.77527369]
[1725316286659,3.77404348,134.44,134.41,0.05517369]
[1725316288959,3.7196,134.43,134.41,0.05517369]
[1725316289265,9.13,134.43,134.41,0.05517369]
[1725316290464,3.7198,134.42,134.41,0.05517369]
[1725316291662,12.8498,134.42,134.41,0.05517369]
[1725316306679,3.7209,134.38,134.36,3.7214]
[1725316307778,3.77203721,134.38,134.36,3.77308042]
[1725316308282,12.90203721,134.38,134.36,3.77308042]
[1725316309277,3.7212,134.37,134.36,0.05168042]
[1725316309780,12.8512,134.37,134.36,0.05168042]
[1725316310777,9.13,134.37,134.31,3.7228]
[1725316310970,9.13,134.34,134.31,3.7228]
[1725316311774,9.17827716,134.34,134.31,3.77439169]
[1725316313779,12.90037716,134.34,134.31,3.77439169]
[1725316314184,9.17827716,134.34,134.32,3.7226]
[1725316314378,0.04827716,134.34,134.32,3.7226]
[1725316315677,0.04827716,134.34,134.33,3.7223]
[1725316318580,2.772,134.4,134.35,3.7215]
[1725316318581,9.13,134.4,134.35,3.7215]
[1725316319087,3.7208,134.39,134.35,3.7215]
[1725316319588,0.05161357,134.38,134.36,0.04688766]
[1725316320083,0.05161357,134.38,134.36,3.76838766]
[1725316322388,0.05161357,134.38,134.36,0.04688766]
[1725316323683,0.05161357,134.38,134.36,3.76818766]
[1725316335295,12.8512,134.37,134.36,0.04688766]
[1725316343202,0.05161357,134.38,134.36,0.04688766]
[1725316344000,0.05161357,134.38,134.36,3.76818766]
[1725316344495,0.05161357,134.38,134.36,0.04688766]
[1725316348305,9.18161357,134.38,134.36,0.04688766]
[1725316350705,3.7186,134.47,134.43,3.7194]
[1725316350902,9.13,134.48,134.41,9.13]
[1725316351107,9.13,134.5,134.42,9.13]
[1725316351307,16.48900241,134.51,134.46,3.7186]
[1725316351514,12.8475,134.51,134.44,9.13]
[1725316351807,0.05483614,134.49,134.46,0.05463837]
[1725316352007,0.05483614,134.49,134.47,3.7184]
[1725316352210,0.05483614,134.49,134.47,3.79620676]
[1725316352601,0.05483614,134.49,134.48,3.7182]
[1725316353512,0.05483614,134.49,134.47,3.7183]
[1725316353912,0.05483614,134.49,134.46,0.05463837]
[1725316354116,0.05483614,134.49,134.47,3.7184]
[1725316354813,0.05483614,134.49,134.48,3.7182]
[1725316358514,0.05483614,134.49,134.47,3.7184]
[1725316361114,9.18483614,134.49,134.46,0.05463837]
[1725316361418,9.13,134.47,134.46,0.05463837]
[1725316362716,12.92191138,134.47,134.4,3.71439196]
[1725316362917,9.13,134.46,134.43,3.7194]
[1725316363714,9.17818853,134.46,134.43,3.77549359]
[1725316364622,9.13,134.45,134.43,0.05609359]
[1725316365619,12.8492,134.45,134.43,0.05609359]
[1725316371224,3.7193,134.44,134.43,0.05609359]
[1725316371526,12.8493,134.44,134.4,3.7202]
[1725316372027,9.13,134.44,134.39,3.7206]
[1725316372428,0.04797498,134.43,134.4,0.04870026]
[1725316373333,3.7199,134.42,134.4,0.04870026]
[1725316374531,0.04797498,134.43,134.41,9.13]
[1725316374830,1.4017,134.48,134.41,9.13]
[1725316375028,3.7177,134.5,134.45,12.8488]
[1725316375426,3.7177,134.5,134.46,3.7186]
[1725316375827,0.05617402,134.49,134.47,0.04805184]
[1725316376927,3.77407402,134.49,134.47,0.04805184]
[1725316380134,0.05617402,134.49,134.47,0.04805184]
[1725316380932,3.77417402,134.49,134.47,0.04805184]
[1725316389548,3.7182,134.48,134.47,0.04805184]
[1725316395450,0.05617402,134.49,134.47,3.76645184]
[1725316396346,0.05617402,134.49,134.48,3.7182]
[1725316396855,7.39585185,134.55,134.51,3.7171]
[1725316397051,3.7164,134.55,134.51,12.8471]
[1725316397653,7.3571834,134.55,134.51,12.8471]
[1725316397952,3.769662,134.54,134.52,0.05147304]
[1725316399060,3.769662,134.54,134.53,3.7168]
[1725316399061,0.053162,134.54,134.53,3.7168]
[1725316399364,0.053162,134.54,134.53,12.8468]
[1725316400852,1.333,134.59,134.53,9.13]
[1725316401158,17.93285589,134.62,134.56,9.13]
[1725316401354,562.0,134.68,134.57,9.13]
[1725316401355,9.13,134.63,134.57,9.13]
[1725316401555,9.13,134.65,134.57,9.13]
[1725316401853,0.0562219,134.62,134.6,0.04878158]
[1725316403156,0.0562219,134.62,134.61,9.13]
[1725316403456,0.0562219,134.62,134.6,0.04878158]
[1725316403859,0.0562219,134.62,134.6,3.76348158]
[1725316404055,0.0562219,134.62,134.6,12.89348158]
[1725316407368,0.0562219,134.62,134.6,0.04878158]
[1725316412974,3.7146,134.61,134.6,0.04878158]
[1725316420470,3.7155,134.58,134.48,1.3838]
[1725316420769,1.3333,134.64,134.54,9.13]
[1725316420770,3.74638158,134.57,134.54,9.13]
[1725316420970,10.4679,134.6,134.53,9.13]
[1725316421176,10.4679,134.6,134.55,9.13]
[1725316421374,0.05397503,134.59,134.56,0.05532564]
[1725316421575,3.7155,134.58,134.56,0.05532564]
[1725316424182,3.7157,134.57,134.56,0.05532564]
[1725316426978,3.7161,134.56,134.53,12.8467]
[1725316427380,3.7161,134.56,134.53,9.13]
[1725316427781,3.76892673,134.56,134.53,9.18542572]
[1725316428480,0.05282673,134.56,134.53,0.05542572]
[1725316428684,9.18282673,134.56,134.53,0.05542572]
[1725316430278,3.7165,134.54,134.53,0.05542572]
[1725316432983,3.7175,134.51,134.49,9.13]
[1725316434089,0.05585228,134.51,134.49,9.17715702]
[1725316434287,0.05585228,134.51,134.49,12.89505702]
[1725316435883,3.77325228,134.51,134.49,9.17715702]
[1725316436084,0.05585228,134.51,134.49,9.17715702]
[1725316436589,3.7176,134.5,134.49,9.17715702]
[1725316436784,3.7176,134.5,134.49,0.04715702]
[1725316441383,7.40096926,134.5,134.49,0.04715702]
[1725316444090,3.7185,134.47,134.44,3.7191]
[1725316444279,3.7185,134.47,134.44,12.8491]
[1725316444687,3.7183,134.48,134.44,12.8491]
[1725316444992,3.68336926,134.5,134.45,12.8489]
[1725316445290,0.04815609,134.49,134.47,9.13]
[1725316445591,0.04701723,134.49,134.48,12.8481]
[1725316446593,1.3597,134.55,134.49,3.7177]
[1725316446895,3.717,134.53,134.51,9.13]
[1725316447091,1.3597,134.55,134.51,9.13]
[1725316447291,3.7171,134.52,134.51,9.13]
[1725316449497,3.77366556,134.53,134.51,9.13]
[1725316455897,3.7171,134.52,134.5,0.04886073]
[1725316462304,0.05676556,134.53,134.5,0.04886073]
[1725316462305,3.7173,134.51,134.5,0.04886073]
[1725316463707,9.13,134.52,134.44,1.4032]
[1725316463708,3.7183,134.48,134.45,9.13]
[1725316464803,3.77512704,134.48,134.45,9.18498412]
[1725316465003,0.05682704,134.48,134.45,9.18498412]
[1725316466010,3.77512704,134.48,134.45,9.18498412]
[1725316468006,3.7186,134.47,134.45,0.05498412]
[1725316485313,0.05682704,134.48,134.46,3.7187]
[1725316485514,1.397,134.56,134.46,45.65]
[1725316485731,1.397,134.56,134.51,9.13]
[1725316485912,3.7164,134.55,134.52,9.13]
[1725316486415,3.76379601,134.55,134.52,9.18300917]
[1725316489213,3.76379601,134.55,134.52,12.89990917]
[1725316496416,3.76379601,134.55,134.53,3.7168]
[1725316496613,0.04739601,134.55,134.53,3.7168]
[1725316498221,0.04739601,134.55,134.54,3.7165]
[1725316500716,0.04739601,134.55,134.54,12.8465]
[1725316500922,1.4625,134.6,134.57,3.7156]
[1725316501117,1.4625,134.6,134.57,12.8456]
[1725316501322,5.1776,134.6,134.57,12.8456]
[1725316502125,5.23000373,134.6,134.57,12.90143558]
[1725316502726,3.7151,134.59,134.57,9.18583558]
[1725316502929,3.73978544,134.58,134.57,0.05583558]
[1725316503131,1.51490373,134.6,134.57,0.05583558]
[1725316503324,3.7151,134.59,134.57,0.05583558]
[1725316509326,3.7154,134.58,134.57,0.05583558]
[1725316509627,7.52177491,134.58,134.57,0.05583558]
[1725316513432,7.52177491,134.58,134.53,9.13]
[1725316513433,3.7162,134.56,134.53,3.7167]
[1725316514429,3.76878742,134.56,134.53,3.76507013]
[1725316514634,3.76878742,134.56,134.53,0.04837013]
[1725316514937,3.7163,134.55,134.53,0.04837013]
[1725316515122,0.05258742,134.56,134.53,0.04837013]
[1725316515430,3.76868742,134.56,134.53,0.04837013]
[1725316516323,3.76868742,134.56,134.53,3.76507013]
[1725316516529,0.05258742,134.56,134.53,0.04837013]
[1725316516839,0.05258742,134.56,134.55,9.13]
[1725316517634,0.05258742,134.56,134.55,12.8462]
[1725316522643,0.05258742,134.56,134.54,3.7163]
[1725316522946,0.05258742,134.56,134.54,12.8463]
[1725316524537,0.05258742,134.56,134.55,3.7162]
[1725316524732,0.05258742,134.56,134.55,12.8462]
[1725316533154,0.05258742,134.56,134.53,0.04837013]
[1725316533448,0.05258742,134.56,134.53,9.17837013]
[1725316534550,0.05258742,134.56,134.53,12.89497013]
[1725316534944,3.76858742,134.56,134.53,12.89497013]
[1725316539852,3.76858742,134.56,134.53,9.17837013]
[1725316540056,9.18258742,134.56,134.53,0.04837013]
[1725316540257,9.13,134.55,134.41,3.62788104]
[1725316540559,3.7177,134.5,134.46,12.8487]
[1725316540951,3.7179,134.49,134.46,12.8487]
[1725316541353,3.76546987,134.49,134.46,12.89662294]
[1725316541946,0.04756987,134.49,134.46,12.89662294]
[1725316542257,0.04756987,134.49,134.48,9.13]
[1725316547969,0.04756987,134.49,134.47,12.8484]
[1725316549271,3.76546987,134.49,134.46,12.89652294]
[1725316550465,0.04756987,134.49,134.46,0.04792294]
[1725316550670,3.7183,134.48,134.46,0.04792294]
[1725316552273,3.76546987,134.49,134.46,0.04792294]
[1725316553465,3.76546987,134.49,134.41,3.67058036]
[1725316553466,45.65,134.47,134.23,7.4498]
[1725316553669,9.13,134.4,134.33,9.13]
[1725316553874,12.82363,134.4,134.33,12.82995535]
[1725316554278,3.7211,134.38,134.33,16.55205535]
[1725316554474,0.04918226,134.38,134.35,0.04176632]
[1725316555366,3.7213,134.37,134.35,0.04176632]
[1725316557974,9.17918226,134.38,134.35,0.04176632]
[1725316557975,3.7215,134.36,134.35,0.04176632]
[1725316560879,12.8515,134.36,134.35,0.04176632]
[1725316562476,3.7212,134.37,134.35,0.04176632]
[1725316566877,0.04918226,134.38,134.35,0.04176632]
[1725316568382,0.04918226,134.38,134.36,3.7213]
[1725316570980,0.04918226,134.38,134.37,3.7212]
[1725316573278,3.72,134.42,134.36,27.93526488]
[1725316573483,1.3644,134.44,134.38,22.86]
[1725316573688,3.80374944,134.46,134.38,22.86]
[1725316573887,3.7193,134.44,134.4,3.7202]
[1725316574486,0.05436115,134.43,134.41,0.05691582]
[1725316575191,0.05436115,134.43,134.41,3.77691582]
[1725316577291,0.05436115,134.43,134.42,3.7198]
[1725316577692,0.05436115,134.43,134.41,0.05691582]
[1725316579292,0.05436115,134.43,134.41,3.77691582]
[1725316582587,0.05436115,134.43,134.42,3.7198]
[1725316583494,0.05436115,134.43,134.41,3.77691582]
[1725316591507,0.05436115,134.43,134.42,12.8598]
[1725316591812,4.1873,134.49,134.42,9.14]
[1725316592013,7.9053,134.49,134.44,12.8591]
[1725316592308,7.9053,134.49,134.44,9.14]
[1725316592700,7.9053,134.49,134.45,3.7188]
[1725316592897,0.04788252,134.48,134.46,0.04950742]
[1725316596806,0.04788252,134.48,134.46,3.76820742]
[1725316598109,3.76608252,134.48,134.46,0.04950742]
[1725316598314,0.04788252,134.48,134.46,0.04950742]
[1725316598809,0.04788252,134.48,134.46,9.18950742]
[1725316599614,0.04788252,134.48,134.47,3.7184]
[1725316609809,0.04788252,134.48,134.46,0.04950742]
[1725316610117,9.18788252,134.48,134.46,0.04950742]
[1725316610318,3.7184,134.47,134.46,0.04950742]
[1725316611511,3.7184,134.47,134.44,3.7191]
[1725316612622,3.7184,134.47,134.44,3.76949229]
[1725316621129,9.18788252,134.48,134.44,3.76949229]
[1725316621130,3.7187,134.46,134.44,3.76949229]
[1725316621632,9.14,134.46,134.44,0.05039229]
[1725316622229,3.719,134.45,134.44,0.05039229]
[1725316622428,9.14,134.46,134.4,9.14]
[1725316622632,9.14,134.46,134.39,9.14]
[1725316623038,3.7194,134.44,134.41,3.7199]
[1725316623426,3.76750657,134.44,134.41,3.7199]
[1725316623734,3.76750657,134.44,134.41,3.76531003]
[1725316626127,9.14,134.43,134.3,7.4459]
[1725316626328,9.14,134.43,134.36,9.14]
[1725316626533,9.14,134.43,134.36,12.78335425]
[1725316626730,9.14,134.41,134.33,1.4404]
[1725316626938,9.14,134.41,134.35,9.14]
[1725316627135,0.04873826,134.39,134.35,9.14]
[1725316627336,0.04873826,134.39,134.36,3.7214]
[1725316627538,0.04873826,134.39,134.34,9.14]
[1725316629333,3.76953826,134.39,134.35,3.7216]
[1725316629530,0.04873826,134.39,134.35,9.14]
[1725316630142,0.04873826,134.39,134.36,3.7213]
[1725316631550,3.76943826,134.39,134.35,12.8616]
[1725316632043,3.76953826,134.39,134.35,3.7218]
[1725316635746,0.04873826,134.39,134.36,3.7213]
[1725316638253,3.76943826,134.39,134.35,3.7217]
[1725316638451,3.76943826,134.39,134.33,10.5804]
[1725316638452,9.18873826,134.39,134.33,10.5804]
[1725316638849,3.7211,134.38,134.34,3.7219]
[1725316639556,3.7211,134.38,134.33,14.3027]
[1725316639760,9.14,134.37,134.31,10.5369]
[1725316639955,0.04807477,134.35,134.31,10.5369]
[1725316640254,0.04807477,134.35,134.32,3.7225]
[1725316642269,3.7221,134.34,134.3,3.7231]
[1725316643153,0.04807477,134.35,134.31,9.14]
[1725316643355,0.04807477,134.35,134.32,9.14]
[1725316643951,0.04807477,134.35,134.33,3.7223]
[1725316644771,0.04807477,134.35,134.34,12.862]
[1725316653759,0.04807477,134.35,134.34,3.722]
[1725316653966,0.04807477,134.35,134.34,12.862]
[1725316658775,0.04807477,134.35,134.34,3.722]
[1725316659874,0.04807477,134.35,134.29,1.3679]
[1725316660074,9.18807477,134.35,134.29,1.3679]
[1725316660279,9.18807477,134.35,134.29,10.5079]
[1725316660467,12.90997477,134.35,134.31,3.7227]
[1725316662177,9.18807477,134.35,134.29,10.5079]
[1725316662779,12.90997477,134.35,134.31,3.7228]
[1725316663673,0.04807477,134.35,134.31,3.7228]
[1725316663876,0.04807477,134.35,134.32,3.7224]
[1725316664472,9.18807477,134.35,134.3,12.8631]
[1725316664678,9.18807477,134.35,134.3,9.14]
[1725316665176,12.90987477,134.35,134.31,3.7227]
[1725316668777,12.90987477,134.35,134.32,9.14]
[1725316668778,0.04807477,134.35,134.32,9.14]
[1725316669274,0.04807477,134.35,134.33,3.7222]
[1725316670780,0.04807477,134.35,134.34,3.722]
[1725316672071,0.04807477,134.35,134.33,9.14]
[1725316672474,0.04807477,134.35,134.34,3.722]
[1725316679184,0.04807477,134.35,134.33,3.7222]
[1725316682185,0.04807477,134.35,134.29,1.3679]
[1725316682380,12.8621,134.34,134.29,1.3679]
[1725316682581,12.8621,134.34,134.29,10.5079]
[1725316682878,9.14,134.34,134.29,10.5079]
[1725316683683,9.14,134.34,134.31,3.7228]
[1725316685080,12.8621,134.34,134.31,3.7228]
[1725316690593,14.35877477,134.35,134.31,3.7228]
[1725316699703,14.35877477,134.35,134.28,5.09992545]
[1725316699704,3.7221,134.34,134.3,3.723]
[1725316699900,0.04807477,134.35,134.28,14.23992545]
[1725316700098,0.04807477,134.35,134.29,9.14]
[1725316700397,0.04807477,134.35,134.32,9.14]
[1725316701001,0.04807477,134.35,134.33,3.7221]
[1725316701800,0.04807477,134.35,134.28,5.09992545]
[1725316701801,0.04807477,134.35,134.34,3.722]
[1725316702105,0.04807477,134.35,134.31,9.14]
[1725316702403,0.04807477,134.35,134.32,3.7224]
[1725316703501,12.90987477,134.35,134.32,3.7224]
[1725316703695,12.90987477,134.35,134.31,3.7228]
[1725316704808,3.722,134.34,134.31,3.7228]
[1725316705304,3.722,134.34,134.3,3.7229]
[1725316705706,3.7236,134.29,134.25,5.0626]
[1725316706001,0.05307495,134.28,134.25,5.01387165]
[1725316706392,0.05307495,134.28,134.26,3.7241]
[1725316706594,0.05307495,134.28,134.25,14.15387165]
[1725316706906,0.05307495,134.28,134.27,3.724]
[1725316708698,0.05307495,134.28,134.26,3.7242]
[1725316710699,0.05307495,134.28,134.21,1.46]
[1725316710901,0.05307495,134.28,134.24,9.14]
[1725316711294,0.05307495,134.28,134.25,3.7244]
[1725316712302,0.05307495,134.28,134.25,9.14]
[1725316713204,0.05307495,134.28,134.26,3.7241]
[1725316733933,0.05307495,134.28,134.27,3.724]
[1725316736127,0.05307495,134.28,134.26,9.14]
[1725316736128,0.05307495,134.28,134.26,12.8641]
[1725316737130,0.05307495,134.28,134.27,3.724]
[1725316748940,0.05307495,134.28,134.26,12.8642]
[1725316749142,0.05307495,134.28,134.26,3.7242]
[1725316750741,0.05307495,134.28,134.25,3.7243]
[1725316752240,0.05307495,134.28,134.24,9.14]
[1725316752241,1.3243,134.37,134.27,9.14]
[1725316752439,2.6941,134.37,134.31,9.14]
[1725316753140,3.77853435,134.35,134.33,0.04717026]
[1725316766267,0.05663435,134.35,134.34,9.14]
[1725316766763,0.05663435,134.35,134.34,12.862]
[1725316767459,6.52164443,134.42,134.38,3.7209]
[1725316767667,10.24154443,134.42,134.37,9.14]
[1725316768372,3.77405833,134.41,134.38,0.05343651]
[1725316771961,9.14,134.4,134.38,0.05343651]
[1725316772271,9.14,134.4,134.36,3.7214]
[1725316773267,9.14,134.4,134.37,0.05371497]
[1725316773570,3.7207,134.39,134.37,0.05371497]
[1725316780064,9.14,134.38,134.3,2.8031]
[1725316780266,9.14,134.37,134.31,9.14]
[1725316780570,3.7217,134.36,134.32,3.7225]
[1725316780969,0.05304118,134.35,134.32,3.7225]
[1725316781567,0.05304118,134.35,134.3,1.4575]
[1725316781758,0.05304118,134.35,134.33,9.14]
[1725316782159,0.05304118,134.35,134.3,1.4575]
[1725316782367,3.74982344,134.35,134.31,9.14]
[1725316782670,0.05304118,134.35,134.29,12.92481626]
[1725316782873,3.75242864,134.35,134.29,9.14]
[1725316783174,3.7222,134.34,134.3,3.723]
[1725316783561,7.47432864,134.35,134.31,3.7228]
[1725316783769,7.47432864,134.35,134.29,12.8520413]
[1725316783770,0.05304118,134.35,134.32,9.14]
[1725316784074,0.05304118,134.35,134.33,9.14]
[1725316784564,0.05304118,134.35,134.33,12.8621]
[1725316787968,0.05304118,134.35,134.32,3.7225]
[1725316788169,0.05304118,134.35,134.32,12.8625]
[1725316789763,0.05304118,134.35,134.32,3.7225]
[1725316793078,3.77484118,134.35,134.31,12.8627]
[1725316793376,7.48735051,134.35,134.31,12.8627]
[1725316794775,3.7221,134.34,134.31,12.8627]
[1725316795369,3.7221,134.34,134.3,3.723]
[1725316795571,3.7223,134.33,134.3,12.863]
[1725316795867,12.90555051,134.35,134.28,5.1293]
[1725316796072,0.05029576,134.33,134.28,14.2693]
[1725316796565,3.7228,134.32,134.28,14.2693]
[1725316797272,3.7228,134.32,134.27,1.3214]
[1725316797273,3.7229,134.31,134.27,5.0453]